[Event "*** Titled Tuesday Blitz"]
[Site "Chess.com"]
[Date "2020.04.21"]
[Round "4"]
[White "Swarnapuri"]
[Black "Parhamov"]
[Result "0-1"]
[WhiteElo "2712"]
[BlackElo "3048"]
[TimeControl "180+1"]
[EndTime "10:39:12 PDT"]
[Termination "Parhamov won by resignation"]

1. d4 {[%clk 0:03:00.9]} 1... Nf6 {[%clk 0:02:58.9]} 2. Bf4 {[%clk 0:03:01.6]}
2... e6 {[%clk 0:02:57.8]} 3. e3 {[%clk 0:03:02.1]} 3... c5 {[%clk 0:02:56.5]}
4. Nf3 {[%clk 0:03:02.5]} 4... b6 {[%clk 0:02:56.6]} 5. Nc3 {[%clk 0:03:02.9]}
5... Be7 {[%clk 0:02:52.9]} 6. Nb5 {[%clk 0:03:02.9]} 6... Na6 {[%clk
0:02:27.3]} 7. Nd6+ {[%clk 0:02:50.6]} 7... Bxd6 {[%clk 0:02:25.9]} 8. Bxd6
{[%clk 0:02:51.5]} 8... Ne4 {[%clk 0:02:23.3]} 9. Bf4 {[%clk 0:02:48.8]} 9...
O-O {[%clk 0:02:21.4]} 10. Bd3 {[%clk 0:02:48.7]} 10... f5 {[%clk 0:02:20.1]}
11. c3 {[%clk 0:02:39.5]} 11... Bb7 {[%clk 0:02:15.8]} 12. Qe2 {[%clk
0:02:28.7]} 12... Nc7 {[%clk 0:02:15.4]} 13. O-O-O {[%clk 0:02:29.3]} 13... d6
{[%clk 0:02:10.2]} 14. h4 {[%clk 0:02:25.2]} 14... h6 {[%clk 0:02:09.8]} 15.
Rhg1 {[%clk 0:02:21.5]} 15... Nd5 {[%clk 0:02:09]} 16. Bh2 {[%clk 0:02:17.9]}
16... Rc8 {[%clk 0:02:08.3]} 17. Bc2 {[%clk 0:01:56.1]} 17... cxd4 {[%clk
0:01:59.2]} 18. Nxd4 {[%clk 0:01:53.9]} 18... Ndxc3 {[%clk 0:01:58.4]} 19. bxc3
{[%clk 0:01:52.9]} 19... Nxc3 {[%clk 0:01:58.1]} 20. Qd2 {[%clk 0:01:40.6]}
20... Bd5 {[%clk 0:01:58.1]} 21. Kb2 {[%clk 0:01:38]} 21... b5 {[%clk
0:01:58.1]} 22. Bb3 {[%clk 0:01:36.7]} 22... Qa5 {[%clk 0:01:57.7]} 23. Ka1
{[%clk 0:01:06.7]} 23... b4 {[%clk 0:01:34.1]} 24. Rc1 {[%clk 0:00:56.6]} 24...
Bxb3 {[%clk 0:01:18.7]} 25. Nxb3 {[%clk 0:00:56.1]} 25... Qa4 {[%clk 0:01:19.2]}
26. Rc2 {[%clk 0:00:48.2]} 26... Rc6 {[%clk 0:01:18.8]} 27. Rgc1 {[%clk
0:00:38.2]} 27... Rfc8 {[%clk 0:01:18.3]} 28. Nd4 {[%clk 0:00:27.8]} 28... Ra6
{[%clk 0:01:17.9]} 29. Rb2 {[%clk 0:00:18.8]} 29... Rc5 {[%clk 0:01:14]} 30. f3
{[%clk 0:00:18.1]} 30... Rca5 {[%clk 0:01:14.2]} 31. Rcc2 {[%clk 0:00:18.6]}
31... Rd5 {[%clk 0:01:09.4]} 32. Qe1 {[%clk 0:00:16.1]} 32... e5 {[%clk
0:01:00.5]} 33. Ne2 {[%clk 0:00:14.5]} 33... Rd1+ {[%clk 0:00:57.5]} 0-1

[Event "*** Titled Tuesday Blitz"]
[Site "Chess.com"]
[Date "2020.04.21"]
[Round "4"]
[White "MFguimaraes"]
[Black "nocnypako"]
[Result "1/2-1/2"]
[WhiteElo "2413"]
[BlackElo "2583"]
[TimeControl "180+1"]
[EndTime "10:39:13 PDT"]
[Termination "Game drawn by repetition"]

1. e4 {[%clk 0:03:00.9]} 1... e6 {[%clk 0:02:59.9]} 2. d4 {[%clk 0:03:00.6]}
2... d5 {[%clk 0:03:00.6]} 3. Nd2 {[%clk 0:03:01.1]} 3... c5 {[%clk 0:03:00]} 4.
exd5 {[%clk 0:03:00.2]} 4... Qxd5 {[%clk 0:03:00.6]} 5. Ngf3 {[%clk 0:02:59.8]}
5... cxd4 {[%clk 0:03:00.8]} 6. Bc4 {[%clk 0:03:00.1]} 6... Qd6 {[%clk
0:03:01.4]} 7. O-O {[%clk 0:03:00.3]} 7... Nf6 {[%clk 0:03:02]} 8. Nb3 {[%clk
0:03:00.7]} 8... Nc6 {[%clk 0:03:02.7]} 9. Nbxd4 {[%clk 0:02:59.3]} 9... Nxd4
{[%clk 0:03:03.6]} 10. Nxd4 {[%clk 0:02:53.7]} 10... Be7 {[%clk 0:03:04.1]} 11.
Nb5 {[%clk 0:02:48.5]} 11... Qc6 {[%clk 0:03:02.8]} 12. Qe2 {[%clk 0:02:31]}
12... O-O {[%clk 0:03:01.4]} 13. Bf4 {[%clk 0:02:26.6]} 13... Bd7 {[%clk
0:02:48.1]} 14. b3 {[%clk 0:02:06.6]} 14... a6 {[%clk 0:02:47.1]} 15. Nd4 {[%clk
0:02:06.3]} 15... Qc5 {[%clk 0:02:41]} 16. Be3 {[%clk 0:02:02.6]} 16... Qe5
{[%clk 0:02:31.7]} 17. Nf3 {[%clk 0:01:56.1]} 17... Qc7 {[%clk 0:02:30.3]} 18.
a4 {[%clk 0:01:54.9]} 18... Bc6 {[%clk 0:02:30.2]} 19. Nd4 {[%clk 0:01:45.2]}
19... Bd5 {[%clk 0:02:22.2]} 20. Bd3 {[%clk 0:01:34.4]} 20... Ne4 {[%clk
0:02:20]} 21. c4 {[%clk 0:01:32.3]} 21... Bc6 {[%clk 0:02:11.4]} 22. Nxc6 {[%clk
0:01:28.7]} 22... Qxc6 {[%clk 0:02:12.3]} 23. Bd4 {[%clk 0:01:03]} 23... Nc5
{[%clk 0:02:03.7]} 24. Bc2 {[%clk 0:00:57.2]} 24... Rfd8 {[%clk 0:01:59.9]} 25.
Rad1 {[%clk 0:00:55.9]} 25... Bf8 {[%clk 0:01:50.1]} 26. Qh5 {[%clk 0:00:49.6]}
26... h6 {[%clk 0:01:37.3]} 27. Be3 {[%clk 0:00:38.3]} 27... Ne4 {[%clk
0:01:23.9]} 28. Qg4 {[%clk 0:00:35.1]} 28... Nf6 {[%clk 0:01:22.3]} 29. Qg3
{[%clk 0:00:33.7]} 29... Bd6 {[%clk 0:01:18.3]} 30. Qh4 {[%clk 0:00:33.5]} 30...
Be7 {[%clk 0:01:15.6]} 31. Bxh6 {[%clk 0:00:28.1]} 31... gxh6 {[%clk 0:01:12.7]}
32. Qxh6 {[%clk 0:00:27.8]} 32... Rxd1 {[%clk 0:01:11.4]} 33. Rxd1 {[%clk
0:00:27.5]} 33... Rd8 {[%clk 0:01:11.9]} 34. Qg5+ {[%clk 0:00:27.6]} 34... Kf8
{[%clk 0:01:11.3]} 35. Qh6+ {[%clk 0:00:27.4]} 35... Kg8 {[%clk 0:00:49.7]} 36.
Qg5+ {[%clk 0:00:27.6]} 36... Kf8 {[%clk 0:00:50.1]} 37. Qh6+ {[%clk 0:00:27.9]}
37... Kg8 {[%clk 0:00:49.9]} 1/2-1/2

[Event "*** Titled Tuesday Blitz"]
[Site "Chess.com"]
[Date "2020.04.21"]
[Round "4"]
[White "sergeikim"]
[Black "kallerotmg"]
[Result "1-0"]
[WhiteElo "2420"]
[BlackElo "2171"]
[TimeControl "180+1"]
[EndTime "10:39:13 PDT"]
[Termination "sergeikim won by resignation"]

1. d4 {[%clk 0:03:00.9]} 1... Nf6 {[%clk 0:02:56.3]} 2. c4 {[%clk 0:03:00.8]}
2... e6 {[%clk 0:02:43.7]} 3. Nc3 {[%clk 0:03:00.6]} 3... Bb4 {[%clk 0:02:43]}
4. Qc2 {[%clk 0:03:00.6]} 4... b6 {[%clk 0:02:42.2]} 5. a3 {[%clk 0:03:00.3]}
5... Bxc3+ {[%clk 0:02:41]} 6. Qxc3 {[%clk 0:03:01.2]} 6... Bb7 {[%clk
0:02:41.6]} 7. Nf3 {[%clk 0:03:00.6]} 7... d6 {[%clk 0:02:38]} 8. g3 {[%clk
0:03:00.2]} 8... O-O {[%clk 0:02:27.2]} 9. Bg2 {[%clk 0:03:00.1]} 9... Nbd7
{[%clk 0:02:27.5]} 10. O-O {[%clk 0:02:58.7]} 10... Qe7 {[%clk 0:02:26.2]} 11.
b3 {[%clk 0:02:57.4]} 11... c5 {[%clk 0:01:58]} 12. dxc5 {[%clk 0:02:56.4]}
12... Nxc5 {[%clk 0:01:47]} 13. Bb2 {[%clk 0:02:53.1]} 13... Rac8 {[%clk
0:01:46.8]} 14. Rac1 {[%clk 0:02:48.9]} 14... d5 {[%clk 0:01:39.4]} 15. cxd5
{[%clk 0:02:15.4]} 15... Nce4 {[%clk 0:01:34.5]} 16. Qd4 {[%clk 0:02:11.1]}
16... Bxd5 {[%clk 0:01:34.3]} 17. b4 {[%clk 0:02:08]} 17... Rfd8 {[%clk
0:01:30.1]} 18. Rxc8 {[%clk 0:02:02.8]} 18... Rxc8 {[%clk 0:01:30.5]} 19. Ne5
{[%clk 0:01:57]} 19... Rc2 {[%clk 0:01:22.9]} 20. Rd1 {[%clk 0:01:31.9]} 20...
Rxe2 {[%clk 0:01:07.6]} 21. f3 {[%clk 0:01:08]} 21... Nd6 {[%clk 0:00:58.5]} 22.
Bf1 {[%clk 0:00:57.6]} 22... Rc2 {[%clk 0:00:54.5]} 23. Bd3 {[%clk 0:00:52.5]}
23... Rc8 {[%clk 0:00:52.4]} 24. Ng4 {[%clk 0:00:50.5]} 24... Nde8 {[%clk
0:00:37.4]} 25. Ne5 {[%clk 0:00:48.9]} 25... h6 {[%clk 0:00:28.8]} 26. Ba6
{[%clk 0:00:44]} 26... Rd8 {[%clk 0:00:28.3]} 27. Nc6 {[%clk 0:00:39.5]} 27...
Bxc6 {[%clk 0:00:17.1]} 28. Qxd8 {[%clk 0:00:38.6]} 28... Qxd8 {[%clk
0:00:17.5]} 29. Rxd8 {[%clk 0:00:38.1]} 29... Bxf3 {[%clk 0:00:18.4]} 30. Bxf6
{[%clk 0:00:37.1]} 1-0

[Event "*** Titled Tuesday Blitz"]
[Site "Chess.com"]
[Date "2020.04.21"]
[Round "4"]
[White "SCIM"]
[Black "Jenia84"]
[Result "1-0"]
[WhiteElo "2541"]
[BlackElo "2299"]
[TimeControl "180+1"]
[EndTime "10:39:17 PDT"]
[Termination "SCIM won by resignation"]

1. d4 {[%clk 0:02:58.2]} 1... Nf6 {[%clk 0:02:59.3]} 2. c4 {[%clk 0:02:57.4]}
2... e6 {[%clk 0:02:51.8]} 3. g3 {[%clk 0:02:52.9]} 3... d5 {[%clk 0:02:49.3]}
4. Nf3 {[%clk 0:02:52.8]} 4... Bb4+ {[%clk 0:02:49.1]} 5. Bd2 {[%clk 0:02:51.9]}
5... Bd6 {[%clk 0:02:48.1]} 6. Nc3 {[%clk 0:02:47.3]} 6... c6 {[%clk 0:02:47.6]}
7. Bg5 {[%clk 0:02:45.1]} 7... Nbd7 {[%clk 0:02:43.6]} 8. Bg2 {[%clk 0:02:43.9]}
8... O-O {[%clk 0:02:41.4]} 9. O-O {[%clk 0:02:42.3]} 9... h6 {[%clk 0:02:41.1]}
10. Bxf6 {[%clk 0:02:39.7]} 10... Nxf6 {[%clk 0:02:32.4]} 11. Qc2 {[%clk
0:02:38.3]} 11... Qc7 {[%clk 0:02:07.2]} 12. Rad1 {[%clk 0:02:30.2]} 12... b6
{[%clk 0:01:58.6]} 13. e4 {[%clk 0:02:19.7]} 13... dxe4 {[%clk 0:01:50.3]} 14.
Nxe4 {[%clk 0:02:20.6]} 14... Nxe4 {[%clk 0:01:50.2]} 15. Qxe4 {[%clk
0:02:19.7]} 15... Bb7 {[%clk 0:01:47.5]} 16. Ne5 {[%clk 0:02:19.1]} 16... Bxe5
{[%clk 0:01:28.2]} 17. dxe5 {[%clk 0:02:04.3]} 17... Rab8 {[%clk 0:01:28.1]} 18.
Rd6 {[%clk 0:01:57.5]} 18... c5 {[%clk 0:01:27.2]} 19. Qd3 {[%clk 0:01:55.8]}
19... Bxg2 {[%clk 0:01:26.7]} 20. Kxg2 {[%clk 0:01:56]} 20... Rfd8 {[%clk
0:01:25.1]} 21. Rd1 {[%clk 0:01:54.8]} 21... Rxd6 {[%clk 0:01:23.8]} 22. exd6
{[%clk 0:01:53.1]} 22... Qc6+ {[%clk 0:01:23.8]} 23. f3 {[%clk 0:01:50.8]} 23...
Rd8 {[%clk 0:01:23.9]} 24. b3 {[%clk 0:01:46.9]} 24... e5 {[%clk 0:01:14.4]} 25.
h4 {[%clk 0:01:40.9]} 25... f6 {[%clk 0:01:14.3]} 26. h5 {[%clk 0:01:38.5]}
26... Kf8 {[%clk 0:01:10.8]} 27. g4 {[%clk 0:01:34.6]} 27... Kf7 {[%clk
0:01:07.5]} 28. Kg3 {[%clk 0:01:32.8]} 28... a6 {[%clk 0:01:01.6]} 29. a4 {[%clk
0:01:31.4]} 29... Rd7 {[%clk 0:00:58.9]} 30. Qg6+ {[%clk 0:01:24.3]} 30... Kf8
{[%clk 0:00:58.3]} 31. Qd3 {[%clk 0:01:24.1]} 31... Kf7 {[%clk 0:00:58]} 32. f4
{[%clk 0:01:19.9]} 32... exf4+ {[%clk 0:00:56.5]} 33. Kxf4 {[%clk 0:01:18.7]}
33... Kf8 {[%clk 0:00:54.5]} 34. Qd5 {[%clk 0:01:11.7]} 34... Qxd5 {[%clk
0:00:52.8]} 35. Rxd5 {[%clk 0:01:12.6]} 35... Kf7 {[%clk 0:00:50.4]} 36. Kf5
{[%clk 0:01:11.7]} 36... Rd8 {[%clk 0:00:50.4]} 37. d7 {[%clk 0:01:10.8]} 37...
Ke7 {[%clk 0:00:20.3]} 38. Kg6 {[%clk 0:01:09.7]} 38... Rxd7 {[%clk 0:00:20.6]}
39. Rxd7+ {[%clk 0:01:10.1]} 39... Kxd7 {[%clk 0:00:21.1]} 40. Kxg7 {[%clk
0:01:10.5]} 40... Ke6 {[%clk 0:00:20.6]} 41. Kxh6 {[%clk 0:01:10]} 41... Kf7
{[%clk 0:00:18.5]} 42. Kh7 {[%clk 0:01:08.5]} 42... a5 {[%clk 0:00:18]} 43. Kh6
{[%clk 0:01:07.6]} 1-0

[Event "*** Titled Tuesday Blitz"]
[Site "Chess.com"]
[Date "2020.04.21"]
[Round "4"]
[White "Halvard"]
[Black "LiamPutnam2008"]
[Result "0-1"]
[WhiteElo "2101"]
[BlackElo "2482"]
[TimeControl "180+1"]
[EndTime "10:39:17 PDT"]
[Termination "LiamPutnam2008 won by resignation"]

1. e4 {[%clk 0:03:00.9]} 1... c5 {[%clk 0:02:57.6]} 2. a3 {[%clk 0:02:59.8]}
2... g6 {[%clk 0:02:55.7]} 3. b4 {[%clk 0:02:59.5]} 3... Bg7 {[%clk 0:02:55.4]}
4. Nc3 {[%clk 0:02:59.5]} 4... d6 {[%clk 0:02:50.9]} 5. g3 {[%clk 0:02:57.7]}
5... Nf6 {[%clk 0:02:50.3]} 6. Bg2 {[%clk 0:02:56.4]} 6... O-O {[%clk
0:02:50.3]} 7. Nge2 {[%clk 0:02:55]} 7... Nc6 {[%clk 0:02:50.4]} 8. Rb1 {[%clk
0:02:53.9]} 8... Nd4 {[%clk 0:02:44.2]} 9. O-O {[%clk 0:02:49.4]} 9... Rb8
{[%clk 0:02:39.3]} 10. h3 {[%clk 0:02:41.5]} 10... Bd7 {[%clk 0:02:26.3]} 11. d3
{[%clk 0:02:38.1]} 11... Qc7 {[%clk 0:02:20]} 12. Nxd4 {[%clk 0:02:34.5]} 12...
cxd4 {[%clk 0:02:19.3]} 13. Ne2 {[%clk 0:02:34.4]} 13... Rfc8 {[%clk 0:02:14]}
14. Nxd4 {[%clk 0:02:24.9]} 14... e5 {[%clk 0:02:13.3]} 15. Nb3 {[%clk
0:01:56.2]} 15... Qxc2 {[%clk 0:02:07.1]} 16. Be3 {[%clk 0:01:51.8]} 16... Ba4
{[%clk 0:01:45.3]} 17. Qxc2 {[%clk 0:01:33.2]} 17... Rxc2 {[%clk 0:01:46.2]} 18.
Bxa7 {[%clk 0:01:30.7]} 18... Ra8 {[%clk 0:01:46.2]} 19. Be3 {[%clk 0:01:24]}
19... Bb5 {[%clk 0:01:27.7]} 20. Rfd1 {[%clk 0:01:13]} 20... Rxa3 {[%clk
0:01:24.5]} 21. Bf1 {[%clk 0:01:11]} 21... Nd7 {[%clk 0:00:58]} 22. Na5 {[%clk
0:01:08.1]} 22... b6 {[%clk 0:00:37.3]} 23. Nc4 {[%clk 0:01:05.8]} 23... Bxc4
{[%clk 0:00:37.1]} 24. dxc4 {[%clk 0:01:05.9]} 24... Bf8 {[%clk 0:00:37.8]} 25.
c5 {[%clk 0:00:59.9]} 25... bxc5 {[%clk 0:00:37]} 26. bxc5 {[%clk 0:00:59]}
26... Nxc5 {[%clk 0:00:36.8]} 27. Rb8 {[%clk 0:00:57]} 27... Kg7 {[%clk
0:00:33.2]} 28. Bh6+ {[%clk 0:00:46.6]} 28... Kxh6 {[%clk 0:00:32.2]} 29. Rxf8
{[%clk 0:00:47]} 29... Kg7 {[%clk 0:00:31.3]} 30. Rd8 {[%clk 0:00:43.8]} 30...
Nxe4 {[%clk 0:00:27.7]} 31. Bd3 {[%clk 0:00:43.2]} 31... Rd2 {[%clk 0:00:19.6]}
32. Rxd2 {[%clk 0:00:42.9]} 32... Nxd2 {[%clk 0:00:20.5]} 33. Rxd6 {[%clk
0:00:43]} 33... Nf3+ {[%clk 0:00:20.2]} 34. Kg2 {[%clk 0:00:42.5]} 34... Rxd3
{[%clk 0:00:19.7]} 0-1

[Event "*** Titled Tuesday Blitz"]
[Site "Chess.com"]
[Date "2020.04.21"]
[Round "4"]
[White "zmeeed67"]
[Black "Tonychess32"]
[Result "0-1"]
[WhiteElo "2390"]
[BlackElo "2622"]
[TimeControl "180+1"]
[EndTime "10:39:18 PDT"]
[Termination "Tonychess32 won on time"]

1. d4 {[%clk 0:03:00.9]} 1... Nf6 {[%clk 0:02:56.3]} 2. c4 {[%clk 0:03:00.9]}
2... e6 {[%clk 0:02:56.8]} 3. Nc3 {[%clk 0:03:00.9]} 3... Bb4 {[%clk 0:02:56.8]}
4. f3 {[%clk 0:03:01.4]} 4... O-O {[%clk 0:02:56]} 5. e4 {[%clk 0:03:01.3]} 5...
d5 {[%clk 0:02:56.5]} 6. cxd5 {[%clk 0:03:01.2]} 6... exd5 {[%clk 0:02:55.7]} 7.
e5 {[%clk 0:03:01.8]} 7... Nfd7 {[%clk 0:02:54.1]} 8. f4 {[%clk 0:03:01.6]} 8...
c5 {[%clk 0:02:54.3]} 9. a3 {[%clk 0:03:01.5]} 9... Ba5 {[%clk 0:02:52.1]} 10.
Nf3 {[%clk 0:02:59.4]} 10... cxd4 {[%clk 0:02:49.8]} 11. Nxd4 {[%clk 0:03:00.3]}
11... Nxe5 {[%clk 0:02:46.6]} 12. fxe5 {[%clk 0:02:43.1]} 12... Qh4+ {[%clk
0:02:46]} 13. Ke2 {[%clk 0:02:43.2]} 13... Nc6 {[%clk 0:02:36]} 14. Nf3 {[%clk
0:02:38.9]} 14... Bg4 {[%clk 0:02:35.9]} 15. Qe1 {[%clk 0:02:05.9]} 15... Qh5
{[%clk 0:02:23.3]} 16. Kf2 {[%clk 0:01:35.6]} 16... Rfe8 {[%clk 0:02:18.2]} 17.
Bf4 {[%clk 0:01:20.7]} 17... Bb6+ {[%clk 0:02:14.4]} 18. Kg3 {[%clk 0:01:20.7]}
18... Bxf3 {[%clk 0:02:11.7]} 19. gxf3 {[%clk 0:01:20.8]} 19... Nxe5 {[%clk
0:02:08.9]} 20. Be2 {[%clk 0:00:49.7]} 20... Nd3 {[%clk 0:02:03.8]} 21. Bxd3
{[%clk 0:00:44.8]} 21... Rxe1 {[%clk 0:02:04]} 22. Rhxe1 {[%clk 0:00:42.7]}
22... g5 {[%clk 0:02:02.3]} 23. Be3 {[%clk 0:00:05.1]} 23... Qh4+ {[%clk
0:01:57]} 24. Kg2 {[%clk 0:00:04.6]} 24... Bc7 {[%clk 0:01:55.8]} 25. Nxd5
{[%clk 0:00:03.6]} 25... Qxh2+ {[%clk 0:01:53.3]} 26. Kf1 {[%clk 0:00:04.2]}
26... Bg3 {[%clk 0:01:25.5]} 27. Re2 {[%clk 0:00:02.4]} 27... Qh1+ {[%clk
0:01:22.7]} 28. Bg1 {[%clk 0:00:02.9]} 28... Qxf3+ {[%clk 0:01:22.4]} 29. Bf2
{[%clk 0:00:03.5]} 29... Qxd3 {[%clk 0:01:20]} 30. Bxg3 {[%clk 0:00:03.5]} 30...
Qf3+ {[%clk 0:01:15.1]} 31. Rf2 {[%clk 0:00:03.3]} 31... Qxg3 {[%clk 0:01:06.1]}
32. Ne7+ {[%clk 0:00:02]} 32... Kf8 {[%clk 0:01:01.8]} 33. Re1 {[%clk
0:00:02.3]} 33... Qh3+ {[%clk 0:01:00.5]} 34. Kg1 {[%clk 0:00:02.7]} 34... Re8
{[%clk 0:00:58.9]} 0-1

[Event "*** Titled Tuesday Blitz"]
[Site "Chess.com"]
[Date "2020.04.21"]
[Round "4"]
[White "GM_DarwinLaylo"]
[Black "Phenix2k"]
[Result "1-0"]
[WhiteElo "2604"]
[BlackElo "2287"]
[TimeControl "180+1"]
[EndTime "10:39:20 PDT"]
[Termination "GM_DarwinLaylo won by resignation"]

1. c4 {[%clk 0:02:59.7]} 1... g6 {[%clk 0:02:58.4]} 2. Nc3 {[%clk 0:02:59.4]}
2... Bg7 {[%clk 0:02:58.4]} 3. g3 {[%clk 0:02:58.1]} 3... Nf6 {[%clk 0:02:57.5]}
4. Bg2 {[%clk 0:02:58.2]} 4... d6 {[%clk 0:02:57.8]} 5. e4 {[%clk 0:02:57.9]}
5... c5 {[%clk 0:02:58]} 6. Nge2 {[%clk 0:02:58.1]} 6... Nc6 {[%clk 0:02:58.3]}
7. O-O {[%clk 0:02:58.3]} 7... Nd7 {[%clk 0:02:58.4]} 8. f4 {[%clk 0:02:54.6]}
8... Nf8 {[%clk 0:02:55.9]} 9. f5 {[%clk 0:02:52.7]} 9... e6 {[%clk 0:02:38.2]}
10. g4 {[%clk 0:02:51.5]} 10... h5 {[%clk 0:02:37.9]} 11. fxg6 {[%clk
0:02:19.3]} 11... Nxg6 {[%clk 0:02:19.7]} 12. gxh5 {[%clk 0:02:18.4]} 12... Rxh5
{[%clk 0:02:13.6]} 13. d3 {[%clk 0:02:13]} 13... Qh4 {[%clk 0:01:57.4]} 14. h3
{[%clk 0:02:10.5]} 14... Nd4 {[%clk 0:01:31.2]} 15. Nf4 {[%clk 0:01:45]} 15...
Nxf4 {[%clk 0:01:17]} 16. Rxf4 {[%clk 0:01:44.3]} 16... Qg5 {[%clk 0:00:36.5]}
17. Rg4 {[%clk 0:01:43.1]} 17... Qe5 {[%clk 0:00:32.9]} 18. Rxg7 {[%clk
0:01:39.7]} 18... Qxg7 {[%clk 0:00:30.2]} 19. Qxh5 {[%clk 0:01:38.6]} 19... Nc2
{[%clk 0:00:25.4]} 20. Rb1 {[%clk 0:01:32]} 20... Qd4+ {[%clk 0:00:24.7]} 21.
Kh1 {[%clk 0:01:21.2]} 21... Qxd3 {[%clk 0:00:24.8]} 22. Bg5 {[%clk 0:01:13.9]}
22... Kd7 {[%clk 0:00:13.5]} 23. Rd1 {[%clk 0:01:03]} 23... Qxc4 {[%clk
0:00:12.1]} 24. Qxf7+ {[%clk 0:01:02]} 24... Kc6 {[%clk 0:00:10.5]} 25. e5+
{[%clk 0:00:54.4]} 25... d5 {[%clk 0:00:09.1]} 26. Nxd5 {[%clk 0:00:52.2]} 26...
Kb5 {[%clk 0:00:04.3]} 27. Bf1 {[%clk 0:00:45.8]} 1-0

[Event "*** Titled Tuesday Blitz"]
[Site "Chess.com"]
[Date "2020.04.21"]
[Round "4"]
[White "Nastya_Rakhmangulova"]
[Black "Charlottemillard17"]
[Result "1-0"]
[WhiteElo "2373"]
[BlackElo "1385"]
[TimeControl "180+1"]
[EndTime "10:39:24 PDT"]
[Termination "Nastya_Rakhmangulova won by checkmate"]

1. e4 {[%clk 0:03:00.9]} 1... e5 {[%clk 0:02:59.4]} 2. Nf3 {[%clk 0:03:00.5]}
2... Nc6 {[%clk 0:02:58.4]} 3. c3 {[%clk 0:03:01]} 3... h6 {[%clk 0:02:44.5]} 4.
Bb5 {[%clk 0:02:53.7]} 4... d6 {[%clk 0:02:36.5]} 5. O-O {[%clk 0:02:51.7]} 5...
Bg4 {[%clk 0:02:23.6]} 6. d4 {[%clk 0:02:50]} 6... exd4 {[%clk 0:02:17.7]} 7.
cxd4 {[%clk 0:02:50.9]} 7... a6 {[%clk 0:02:17.5]} 8. Bxc6+ {[%clk 0:02:45.6]}
8... bxc6 {[%clk 0:02:16.8]} 9. Be3 {[%clk 0:02:19.6]} 9... Nf6 {[%clk
0:02:05.5]} 10. Nbd2 {[%clk 0:02:19.9]} 10... Be7 {[%clk 0:02:01.3]} 11. Qa4
{[%clk 0:02:20.2]} 11... Qd7 {[%clk 0:01:56.9]} 12. Rac1 {[%clk 0:02:10.1]}
12... Bxf3 {[%clk 0:01:35.8]} 13. Nxf3 {[%clk 0:02:05.1]} 13... Nxe4 {[%clk
0:01:34.3]} 14. Qxc6 {[%clk 0:02:04.8]} 14... Qxc6 {[%clk 0:01:33.9]} 15. Rxc6
{[%clk 0:02:05.7]} 15... Bd8 {[%clk 0:01:27.5]} 16. Nd2 {[%clk 0:01:55.3]} 16...
Nxd2 {[%clk 0:01:17.1]} 17. Bxd2 {[%clk 0:01:56.2]} 17... O-O {[%clk 0:01:15.7]}
18. Ba5 {[%clk 0:01:56.6]} 18... Ra7 {[%clk 0:01:13.9]} 19. Rfc1 {[%clk
0:01:55.4]} 19... Rb7 {[%clk 0:01:09.7]} 20. b3 {[%clk 0:01:54]} 20... Re8
{[%clk 0:01:02.3]} 21. Rxa6 {[%clk 0:01:50.6]} 21... Rb5 {[%clk 0:00:58]} 22.
Ra8 {[%clk 0:01:48.6]} 22... Kf8 {[%clk 0:00:46.9]} 23. Bxc7 {[%clk 0:01:39.7]}
23... Bxc7 {[%clk 0:00:19.2]} 24. Rxe8+ {[%clk 0:01:40.6]} 24... Kxe8 {[%clk
0:00:18.8]} 25. Rxc7 {[%clk 0:01:40.8]} 25... Ra5 {[%clk 0:00:19.4]} 26. a4
{[%clk 0:01:40.4]} 26... Rd5 {[%clk 0:00:18.9]} 27. Rc4 {[%clk 0:01:40.5]} 27...
Rf5 {[%clk 0:00:17.8]} 28. f3 {[%clk 0:01:40.7]} 28... d5 {[%clk 0:00:17.3]} 29.
Rc5 {[%clk 0:01:33.5]} 29... Kd7 {[%clk 0:00:17.6]} 30. Kf2 {[%clk 0:01:33.4]}
30... Kd6 {[%clk 0:00:17.7]} 31. a5 {[%clk 0:01:30.7]} 31... Rf6 {[%clk
0:00:16.6]} 32. a6 {[%clk 0:01:28.5]} 32... Re6 {[%clk 0:00:17]} 33. b4 {[%clk
0:01:25.5]} 33... Re8 {[%clk 0:00:17]} 34. b5 {[%clk 0:01:25.7]} 34... Ra8
{[%clk 0:00:16.5]} 35. Rc6+ {[%clk 0:01:19.8]} 35... Kd7 {[%clk 0:00:16.1]} 36.
Rb6 {[%clk 0:01:20.2]} 36... Kc7 {[%clk 0:00:15.5]} 37. Rb7+ {[%clk 0:01:20.4]}
37... Kc8 {[%clk 0:00:14.7]} 38. Rxf7 {[%clk 0:01:20.2]} 38... Rb8 {[%clk
0:00:13.1]} 39. a7 {[%clk 0:01:18.5]} 39... Rxb5 {[%clk 0:00:12.3]} 40. a8=Q+
{[%clk 0:01:18.2]} 40... Rb8 {[%clk 0:00:12.7]} 41. Qc6+ {[%clk 0:01:18.3]}
41... Kd8 {[%clk 0:00:11.6]} 42. Qd7# {[%clk 0:01:19.2]} 1-0